Department family,Entity,Date,Expense type,Expense area,Supplier,Transaction number,Amount,Description
Ministry of Justice,Youth Justice Board,24/03/2016,Grant payable for development - YOT Grant,Operations Directorate,London Borough of Barnet,PI1612/157," 128,644.06 ",Grant payable for development - YOT Grant
Ministry of Justice,Youth Justice Board,24/03/2016,Grant payable for development - YOT Grant,Operations Directorate,Bedfordshire Borough Council,PI1612/159," 161,328.31 ",Grant payable for development - YOT Grant
Ministry of Justice,Youth Justice Board,24/03/2016,Grant payable for development - YOT Grant,Operations Directorate,City of Cardiff Council,PI1612/161," 221,765.67 ",Grant payable for development - YOT Grant
Ministry of Justice,Youth Justice Board,24/03/2016,Grant payable for development - YOT Grant,Operations Directorate,Gloucestershire City Council,PI1612/163," 234,487.09 ",Grant payable for development - YOT Grant
Ministry of Justice,Youth Justice Board,24/03/2016,Grant payable for development - YOT Grant,Operations Directorate,Leicester City Council,PI1612/165," 269,702.49 ",Grant payable for development - YOT Grant
Ministry of Justice,Youth Justice Board,24/03/2016,Grant payable for development - YOT Grant,Operations Directorate,Northamptonshire County Council,PI1612/167," 268,762.95 ",Grant payable for development - YOT Grant
Ministry of Justice,Youth Justice Board,24/03/2016,Grant payable for development - YOT Grant,Operations Directorate,Peterborough City Council,PI1612/169," 185,491.76 ",Grant payable for development - YOT Grant
Ministry of Justice,Youth Justice Board,24/03/2016,Grant payable for development - YOT Grant,Operations Directorate,Trafford Council,PI1612/171," 196,081.36 ",Grant payable for development - YOT Grant
Ministry of Justice,Youth Justice Board,24/03/2016,Grant payable for development - YOT Grant,Operations Directorate,Warwickshire County Council,PI1612/173," 207,046.88 ",Grant payable for development - YOT Grant
Ministry of Justice,Youth Justice Board,24/03/2016,Grant payable for development - Junior Attendance Centres,Operations Directorate,Nottingham City Council,PI1612/230," 40,210.50 ",Grant payable for development - Junior Attendance Centres
Ministry of Justice,Youth Justice Board,24/03/2016,Grant payable for development - Unpaid Work Order,Operations Directorate,Kent County Council,PI1612/236," 27,378.00 ",Grant payable for development - Unpaid Work Order
Ministry of Justice,Youth Justice Board,24/03/2016,Grant payable for development - YOT Grant,Operations Directorate,London Borough of Bromley,PI1612/276," 106,369.50 ",Grant payable for development - YOT Grant
Ministry of Justice,Youth Justice Board,24/03/2016,Grant payable for development - YOT Grant,Operations Directorate,Doncaster Council,PI1612/278," 282,877.18 ",Grant payable for development - YOT Grant
Ministry of Justice,Youth Justice Board,24/03/2016,Grant payable for development - YOT Grant,Operations Directorate,London Borough of Hammersmith & Fulham,PI1612/280," 147,621.79 ",Grant payable for development - YOT Grant
Ministry of Justice,Youth Justice Board,24/03/2016,Grant payable for development - YOT Grant,Operations Directorate,Kent County Council,PI1612/282," 519,449.72 ",Grant payable for development - YOT Grant
Ministry of Justice,Youth Justice Board,24/03/2016,Grant payable for development - YOT Grant,Operations Directorate,London Borough of Redbridge,PI1612/284," 147,608.37 ",Grant payable for development - YOT Grant
Ministry of Justice,Youth Justice Board,24/03/2016,Grant payable for development - YOT Grant,Operations Directorate,Westminster City Council,PI1612/286," 150,465.22 ",Grant payable for development - YOT Grant
Ministry of Justice,Youth Justice Board,24/03/2016,Grant payable for development - YOT Grant,Operations Directorate,Cumbria County Council,PI1612/288," 329,710.89 ",Grant payable for development - YOT Grant
Ministry of Justice,Youth Justice Board,24/03/2016,Grant payable for development - YOT Grant,Operations Directorate,Lewisham Council,PI1612/290," 232,224.99 ",Grant payable for development - YOT Grant
Ministry of Justice,Youth Justice Board,24/03/2016,Grant payable for development - YOT Grant,Operations Directorate,London Borough of Newham,PI1612/292," 368,614.97 ",Grant payable for development - YOT Grant
Ministry of Justice,Youth Justice Board,24/03/2016,Grant payable for development - YOT Grant,Operations Directorate,Salford City Council,PI1612/294," 247,956.63 ",Grant payable for development - YOT Grant
Ministry of Justice,Youth Justice Board,24/03/2016,Grant payable for development - YOT Grant,Operations Directorate,London Borough of Waltham Forest,PI1612/296," 197,785.85 ",Grant payable for development - YOT Grant
Ministry of Justice,Youth Justice Board,24/03/2016,Grant payable for development - YOT Grant,Operations Directorate,London Borough of Lambeth,PI1612/298," 269,268.18 ",Grant payable for development - YOT Grant
Ministry of Justice,Youth Justice Board,29/03/2016,Grant payable for development - YOT Grant,Operations Directorate,London Borough of Hackney,PI1612/299," 247,447.16 ",Grant payable for development - YOT Grant
Ministry of Justice,Youth Justice Board,10/03/2016,Grant payable for development - YOT Grant,Operations Directorate,Rhondda Cynon Taf County Borough Council,PI1612/133," 59,000.00 ",Grant payable for development - YOT Grant
Ministry of Justice,Youth Justice Board,09/03/2016,Grant payable for development - YOT Grant,Operations Directorate,Bournemouth Borough Council,PI1612/088," 128,465.03 ",Grant payable for development - YOT Grant
Ministry of Justice,Youth Justice Board,09/03/2016,Grant payable for development - YOT Grant,Operations Directorate,Bury Council,PI1612/090," 130,921.14 ",Grant payable for development - YOT Grant
Ministry of Justice,Youth Justice Board,09/03/2016,Grant payable for development - YOT Grant,Operations Directorate,Cambridgeshire County Council,PI1612/092," 257,430.04 ",Grant payable for development - YOT Grant
Ministry of Justice,Youth Justice Board,09/03/2016,Grant payable for development - YOT Grant,Operations Directorate,Rhondda Cynon Taf County Borough Council,PI1612/094," 236,884.15 ",Grant payable for development - YOT Grant
Ministry of Justice,Youth Justice Board,09/03/2016,Grant payable for development - YOT Grant,Operations Directorate,London Borough of Ealing,PI1612/096," 182,790.85 ",Grant payable for development - YOT Grant
Ministry of Justice,Youth Justice Board,09/03/2016,Grant payable for development - YOT Grant,Operations Directorate,Gwynedd Council,PI1612/098," 104,087.68 ",Grant payable for development - YOT Grant
Ministry of Justice,Youth Justice Board,09/03/2016,Grant payable for development - YOT Grant,Operations Directorate,London Borough of Harrow,PI1612/100," 102,072.20 ",Grant payable for development - YOT Grant
Ministry of Justice,Youth Justice Board,09/03/2016,Grant payable for development - YOT Grant,Operations Directorate,Royal Borough of Kindston upon Thames Council,PI1612/102," 122,790.24 ",Grant payable for development - YOT Grant
Ministry of Justice,Youth Justice Board,09/03/2016,Grant payable for development - YOT Grant,Operations Directorate,Medway Council,PI1612/104," 133,466.03 ",Grant payable for development - YOT Grant
Ministry of Justice,Youth Justice Board,09/03/2016,Grant payable for development - YOT Grant,Operations Directorate,North East Lincolnshire Council,PI1612/106," 161,414.40 ",Grant payable for development - YOT Grant
Ministry of Justice,Youth Justice Board,09/03/2016,Grant payable for development - YOT Grant,Operations Directorate,Pembrokeshire County Council,PI1612/108," 27,319.79 ",Grant payable for development - YOT Grant
Ministry of Justice,Youth Justice Board,09/03/2016,Grant payable for development - YOT Grant,Operations Directorate,Stockport Metropolitian Borough Council,PI1612/110," 177,069.95 ",Grant payable for development - YOT Grant
Ministry of Justice,Youth Justice Board,09/03/2016,Grant payable for development - YOT Grant,Operations Directorate,Swindon Borough Council,PI1612/112," 100,293.47 ",Grant payable for development - YOT Grant
Ministry of Justice,Youth Justice Board,09/03/2016,Grant payable for development - YOT Grant,Operations Directorate,London Borough of Wandsworth,PI1612/114," 192,288.79 ",Grant payable for development - YOT Grant
Ministry of Justice,Youth Justice Board,09/03/2016,Grant payable for development - YOT Grant,Operations Directorate,The Royal Borough of Windsor and Maidenhead Council,PI1612/116," 51,552.03 ",Grant payable for development - YOT Grant
Ministry of Justice,Youth Justice Board,24/03/2016,Grant payable for development - YOT Grant,Operations Directorate,Bath and North East Somerset Council,PI1612/158," 87,675.78 ",Grant payable for development - YOT Grant
Ministry of Justice,Youth Justice Board,24/03/2016,Grant payable for development - YOT Grant,Operations Directorate,Brighton and Hove City Council,PI1612/160," 125,112.60 ",Grant payable for development - YOT Grant
Ministry of Justice,Youth Justice Board,24/03/2016,Grant payable for development - YOT Grant,Operations Directorate,Cornwall Council,PI1612/162," 225,543.28 ",Grant payable for development - YOT Grant
Ministry of Justice,Youth Justice Board,24/03/2016,Grant payable for development - YOT Grant,Operations Directorate,London Borough of Islington,PI1612/164," 205,800.35 ",Grant payable for development - YOT Grant
Ministry of Justice,Youth Justice Board,24/03/2016,Grant payable for development - YOT Grant,Operations Directorate,London Borough of Merton,PI1612/166," 96,146.93 ",Grant payable for development - YOT Grant
Ministry of Justice,Youth Justice Board,24/03/2016,Grant payable for development - YOT Grant,Operations Directorate,Northumberland County Council,PI1612/168," 245,472.40 ",Grant payable for development - YOT Grant
Ministry of Justice,Youth Justice Board,24/03/2016,Grant payable for development - YOT Grant,Operations Directorate,South Tyneside Council,PI1612/170," 176,814.40 ",Grant payable for development - YOT Grant
Ministry of Justice,Youth Justice Board,24/03/2016,Grant payable for development - YOT Grant,Operations Directorate,Wakefield Metropolitan District Council,PI1612/172," 248,703.83 ",Grant payable for development - YOT Grant
Ministry of Justice,Youth Justice Board,24/03/2016,Grant payable for development - YOT Grant,Operations Directorate,Wokingham Borough Council,PI1612/174," 44,569.09 ",Grant payable for development - YOT Grant
Ministry of Justice,Youth Justice Board,22/03/2016,Grant payable for development - Junior Attendance Centres,Operations Directorate,HM Prison Services,PI1612/192," 64,629.28 ",Grant payable for development - Junior Attendance Centres
Ministry of Justice,Youth Justice Board,24/03/2016,Grant payable for development - Junior Attendance Centres,Operations Directorate,City of Cardiff Council,PI1612/219," 28,052.00 ",Grant payable for development - Junior Attendance Centres
Ministry of Justice,Youth Justice Board,24/03/2016,Grant payable for development - YOT Grant,Operations Directorate,Leicester City Council,PI1612/165," 296,702.49 ",Grant payable for development - YOT Grant
Ministry of Justice,Youth Justice Board,24/03/2016,Grant payable for development - YOT Grant,Operations Directorate,London Borough of Brent,PI1612/277," 194,210.04 ",Grant payable for development - YOT Grant
Ministry of Justice,Youth Justice Board,24/03/2016,Grant payable for development - YOT Grant,Operations Directorate,London Borough of Greenwich,PI1612/279," 174,151.29 ",Grant payable for development - YOT Grant
Ministry of Justice,Youth Justice Board,24/03/2016,Grant payable for development - YOT Grant,Operations Directorate,Royal Borough of Kensington & Chelsea Council,PI1612/281," 118,430.75 ",Grant payable for development - YOT Grant
Ministry of Justice,Youth Justice Board,24/03/2016,Grant payable for development - YOT Grant,Operations Directorate,Oxfordshire County Council,PI1612/283," 268,250.05 ",Grant payable for development - YOT Grant
Ministry of Justice,Youth Justice Board,24/03/2016,Grant payable for development - YOT Grant,Operations Directorate,London Borough of Tower Hamlets,PI1612/285," 231,436.17 ",Grant payable for development - YOT Grant
Ministry of Justice,Youth Justice Board,24/03/2016,Grant payable for development - YOT Grant,Operations Directorate,London Borough of Barking and Dagenham Council,PI1612/287," 200,388.30 ",Grant payable for development - YOT Grant
Ministry of Justice,Youth Justice Board,24/03/2016,Grant payable for development - YOT Grant,Operations Directorate,Lancashire County Council,PI1612/289," 565,246.85 ",Grant payable for development - YOT Grant
Ministry of Justice,Youth Justice Board,24/03/2016,Grant payable for development - YOT Grant,Operations Directorate,Newcastle City Council,PI1612/291," 252,013.58 ",Grant payable for development - YOT Grant
Ministry of Justice,Youth Justice Board,24/03/2016,Grant payable for development - YOT Grant,Operations Directorate,Reading Borough Council,PI1612/293," 119,717.89 ",Grant payable for development - YOT Grant
Ministry of Justice,Youth Justice Board,24/03/2016,Grant payable for development - YOT Grant,Operations Directorate,London Borough of Southwark,PI1612/295," 283,864.07 ",Grant payable for development - YOT Grant
Ministry of Justice,Youth Justice Board,24/03/2016,Grant payable for development - YOT Grant,Operations Directorate,Torbay Council,PI1612/297," 91,261.36 ",Grant payable for development - YOT Grant
Ministry of Justice,Youth Justice Board,10/03/2016,Grant payable for development - YOT Grant,Operations Directorate,Pembrokeshire County Council,PI1612/134," 27,000.00 ",Grant payable for development - YOT Grant
Ministry of Justice,Youth Justice Board,09/03/2016,Grant payable for development - Junior Attendance Centres,Operations Directorate,Lancashire County Council,PI16/12/51," 25,718.50 ",Grant payable for development - Junior Attendance Centres
Ministry of Justice,Youth Justice Board,09/03/2016,Grant payable for development - YOT Grant,Operations Directorate,Bridgend County Borough Council,PI1612/089," 93,517.84 ",Grant payable for development - YOT Grant
Ministry of Justice,Youth Justice Board,09/03/2016,Grant payable for development - YOT Grant,Operations Directorate,Calderdale Council,PI1612/091," 184,603.75 ",Grant payable for development - YOT Grant
Ministry of Justice,Youth Justice Board,09/03/2016,Grant payable for development - YOT Grant,Operations Directorate,London Borough of Camden,PI1612/093," 173,334.66 ",Grant payable for development - YOT Grant
Ministry of Justice,Youth Justice Board,09/03/2016,Grant payable for development - YOT Grant,Operations Directorate,Dorest County Council,PI1612/095," 159,467.44 ",Grant payable for development - YOT Grant
Ministry of Justice,Youth Justice Board,09/03/2016,Grant payable for development - YOT Grant,Operations Directorate,Flintshire County Council,PI1612/097," 95,014.85 ",Grant payable for development - YOT Grant
Ministry of Justice,Youth Justice Board,09/03/2016,Grant payable for development - YOT Grant,Operations Directorate,London Borough of Haringey,PI1612/099," 239,589.14 ",Grant payable for development - YOT Grant
Ministry of Justice,Youth Justice Board,09/03/2016,Grant payable for development - YOT Grant,Operations Directorate,London Borough of Hounslow,PI1612/101," 158,101.06 ",Grant payable for development - YOT Grant
Ministry of Justice,Youth Justice Board,09/03/2016,Grant payable for development - YOT Grant,Operations Directorate,Leicester City Council,PI1612/103," 223,563.42 ",Grant payable for development - YOT Grant
Ministry of Justice,Youth Justice Board,09/03/2016,Grant payable for development - YOT Grant,Operations Directorate,Neath Port Talbot County Borough Council,PI1612/105," 105,305.11 ",Grant payable for development - YOT Grant
Ministry of Justice,Youth Justice Board,09/03/2016,Grant payable for development - YOT Grant,Operations Directorate,Nottingham City Council,PI1612/107," 365,868.32 ",Grant payable for development - YOT Grant
Ministry of Justice,Youth Justice Board,09/03/2016,Grant payable for development - YOT Grant,Operations Directorate,Rochdale Council,PI1612/109," 236,248.65 ",Grant payable for development - YOT Grant
Ministry of Justice,Youth Justice Board,09/03/2016,Grant payable for development - YOT Grant,Operations Directorate,Surrey County Council,PI1612/111," 291,249.12 ",Grant payable for development - YOT Grant
Ministry of Justice,Youth Justice Board,09/03/2016,Grant payable for development - YOT Grant,Operations Directorate,Thurrock Council,PI1612/113," 106,211.40 ",Grant payable for development - YOT Grant
Ministry of Justice,Youth Justice Board,09/03/2016,Grant payable for development - YOT Grant,Operations Directorate,West Sussex County Council,PI1612/115," 257,174.00 ",Grant payable for development - YOT Grant
Ministry of Justice,Youth Justice Board,22/03/2016,Other ICT Programme Costs,Finance and Business Assurance Directorate,Ministry of Justice,PI1612/001," 79,390.80 ",Other ICT Programme Costs
Ministry of Justice,Youth Justice Board,29/03/2016,Other ICT Programme Costs,Finance and Business Assurance Directorate,Ministry of Justice,PI1612/003," 49,564.18 ",Other ICT Programme Costs
Ministry of Justice,Youth Justice Board,29/03/2016,Other ICT Programme Costs,Finance and Business Assurance Directorate,Ministry of Justice,PI1612/022," 74,134.37 ",Other ICT Programme Costs
Ministry of Justice,Youth Justice Board,22/03/2016,Other ICT Programme Costs,Finance and Business Assurance Directorate,Ministry of Justice,PI1612/002," 61,800.00 ",Other ICT Programme Costs
Ministry of Justice,Youth Justice Board,22/03/2016,Other ICT Programme Costs,Finance and Business Assurance Directorate,Ministry of Justice,PI1612/010," 170,010.00 ",Other ICT Programme Costs
Ministry of Justice,Youth Justice Board,22/03/2016,Other ICT Programme Costs,Finance and Business Assurance Directorate,Ministry of Justice,PI1612/014," 67,920.00 ",Other ICT Programme Costs
Ministry of Justice,Youth Justice Board,22/03/2016,Other ICT Programme Costs,Finance and Business Assurance Directorate,Ministry of Justice,PI1612/016," 201,646.21 ",Other ICT Programme Costs
Ministry of Justice,Youth Justice Board,22/03/2016,Other ICT Programme Costs,Finance and Business Assurance Directorate,Ministry of Justice,PI1612/018," 102,411.95 ",Other ICT Programme Costs
Ministry of Justice,Youth Justice Board,22/03/2016,Other ICT Programme Costs,Finance and Business Assurance Directorate,Ministry of Justice,PI1612/023," 108,522.71 ",Other ICT Programme Costs
Ministry of Justice,Youth Justice Board,22/03/2016,Other ICT Programme Costs,Finance and Business Assurance Directorate,Ministry of Justice,PI16/12/10," 170,010.00 ",Other ICT Programme Costs
Ministry of Justice,Youth Justice Board,10/03/2016,Other ICT Programme Costs,Finance and Business Assurance Directorate,Ministry of Justice,PI1612/019," 95,712.00 ",Other ICT Programme Costs
Ministry of Justice,Youth Justice Board,22/03/2016,Other ICT Programme Costs,Finance and Business Assurance Directorate,Ministry of Justice,PI1612/013," 71,586.00 ",Other ICT Programme Costs
Ministry of Justice,Youth Justice Board,22/03/2016,Other ICT Programme Costs,Finance and Business Assurance Directorate,Ministry of Justice,PI1612/015," 120,739.04 ",Other ICT Programme Costs
Ministry of Justice,Youth Justice Board,22/03/2016,Other ICT Programme Costs,Finance and Business Assurance Directorate,Ministry of Justice,PI1612/017," 113,636.27 ",Other ICT Programme Costs
Ministry of Justice,Youth Justice Board,22/03/2016,Other ICT Programme Costs,Finance and Business Assurance Directorate,Ministry of Justice,PI1612/020," 87,187.21 ",Other ICT Programme Costs
Ministry of Justice,Youth Justice Board,10/03/2016,Other ICT Programme Costs,Finance and Business Assurance Directorate,i2N,PI1610/180," 59,400.00 ",Other ICT Programme Costs
Ministry of Justice,Youth Justice Board,29/03/2016,Other YJB Programme Expenditure - AssetPlus,Operations Directorate,Alpine,PI1612/250," 69,578.96 ",Other YJB Programme Expenditure - AssetPlus
Ministry of Justice,Youth Justice Board,22/03/2016,Other YJB Programme Expenditur - Wales,Wales,Llamau,PI1612/146," 25,678.10 ",Other YJB Programme Expenditur - Wales
Ministry of Justice,Youth Justice Board,10/03/2016,Other YJB Programme Expenditure - Y2A,Operations Directorate,i2N,PI1610/178," 28,620.00 ",Other YJB Programme Expenditure - Y2A
Ministry of Justice,Youth Justice Board,10/03/2016,Other YJB Programme Expenditure - Y2A,Operations Directorate,i2N,PI1610/179," 55,020.00 ",Other YJB Programme Expenditure - Y2A
Ministry of Justice,Youth Justice Board,10/03/2016,Other YJB Programme Expenditure - AssetPlus,Operations Directorate,Alpine,PI1611/225," 69,578.96 ",Other YJB Programme Expenditure - AssetPlus
Ministry of Justice,Youth Justice Board,10/03/2016,Other YJB Programme Expenditure,Partnerships and Performance,SFW,PI1612/046," 76,800.00 ",Other YJB Programme Expenditure
Ministry of Justice,Youth Justice Board,23/03/2016,HM Prison Service-Basic Contract,Operations Directorate,HM Prison Services,PI1612/201," 3,803,836.00 ",HM Prison Service-Basic Contract
Ministry of Justice,Youth Justice Board,22/03/2016,Youth Advocacy Services Secure,Operations Directorate,Barnardo's,PI1612/034," 27,994.25 ",Youth Advocacy Services Secure
Ministry of Justice,Youth Justice Board,29/03/2016,Youth Advocacy Services Secure,Operations Directorate,Barnardo's,PI1612/176," 27,994.25 ",Youth Advocacy Services Secure
Ministry of Justice,Youth Justice Board,29/03/2016,Youth Advocacy Services Secure,Operations Directorate,Barnardo's,PI1612/177," 25,035.34 ",Youth Advocacy Services Secure
Ministry of Justice,Youth Justice Board,22/03/2016,Youth Advocacy Services Secure,Operations Directorate,Barnardo's,PI1612/033," 25,035.34 ",Youth Advocacy Services Secure
Ministry of Justice,Youth Justice Board,22/03/2016,LASCH - Basic Sentenced,Operations Directorate,Lincolnshire County Council,PI1612/143," 180,053.17 ",LASCH - Basic Sentenced
Ministry of Justice,Youth Justice Board,10/03/2016,LASCH - Basic Sentenced,Operations Directorate,Nottingham City Council,PI1611/13," 185,845.00 ",LASCH - Basic Sentenced
Ministry of Justice,Youth Justice Board,10/03/2016,LASCH - Basic Sentenced,Operations Directorate,Salford City Council,PI1610/177," 46,143.02 ",LASCH - Basic Sentenced
Ministry of Justice,Youth Justice Board,10/03/2016,LASCH - Basic Sentenced,Operations Directorate,Hampshire County Council,PI1611/085," 38,860.00 ",LASCH - Basic Sentenced
Ministry of Justice,Youth Justice Board,10/03/2016,LASCH - Basic Sentenced,Operations Directorate,Durham City Council,PI1612/030," 407,295.36 ",LASCH - Basic Sentenced
Ministry of Justice,Youth Justice Board,10/03/2016,LASCH - Basic Sentenced,Operations Directorate,Hampshire County Council,PI1612/082," 63,220.00 ",LASCH - Basic Sentenced
Ministry of Justice,Youth Justice Board,10/03/2016,LASCH - Basic Sentenced,Operations Directorate,Neath Port Talbot County Borough Council,PI1612/084," 165,200.00 ",LASCH - Basic Sentenced
Ministry of Justice,Youth Justice Board,29/03/2016,LASCH - Basic Sentenced,Operations Directorate,Sheffield City Council,PI1612/256," 72,248.60 ",LASCH - Basic Sentenced
Ministry of Justice,Youth Justice Board,22/03/2016,LASCH - Basic Sentenced,Operations Directorate,Leeds City Council,PI1612/144," 252,463.50 ",LASCH - Basic Sentenced
Ministry of Justice,Youth Justice Board,10/03/2016,LASCH - Basic Sentenced,Operations Directorate,Neath Port Talbot County Borough Council,PI1611/132," 172,870.00 ",LASCH - Basic Sentenced
Ministry of Justice,Youth Justice Board,10/03/2016,LASCH - Basic Sentenced,Operations Directorate,Nottingham City Council,PI1612/036," 174,400.00 ",LASCH - Basic Sentenced
Ministry of Justice,Youth Justice Board,10/03/2016,LASCH - Basic Sentenced,Operations Directorate,South Gloucestershire Council,PI1612/083," 372,848.64 ",LASCH - Basic Sentenced
Ministry of Justice,Youth Justice Board,10/03/2016,LASCH - Basic Sentenced,Operations Directorate,Sheffield City Council,PI1612/085," 67,587.40 ",LASCH - Basic Sentenced
Ministry of Justice,Youth Justice Board,10/03/2016,LASCH - Basic Sentenced,Operations Directorate,Lincolnshire County Council,PI1611/237," 191,906.20 ",LASCH - Basic Sentenced
Ministry of Justice,Youth Justice Board,10/03/2016,Secure Escorts Basic Contract,Operations Directorate,HM Prison Services,PI1612/076," 41,358.00 ",Secure Escorts Basic Contract
Ministry of Justice,Youth Justice Board,29/03/2016,Service Delivery Programme Expenditure,Commissioning and Change,HM Prison Services,PI1612/202," 32,890.02 ",Service Delivery Programme Expenditure
Ministry of Justice,Youth Justice Board,23/03/2016,Service Delivery Programme Expenditure,Operations Directorate,HM Prison Services,PI1612/201," 49,877.00 ",Service Delivery Programme Expenditure
Ministry of Justice,Youth Justice Board,10/03/2016,Information Technology Support,Finance and Business Assurance Directorate,Ministry of Justice,PI1612/005," 31,347.78 ",Information Technology Support
Ministry of Justice,Youth Justice Board,10/03/2016,Information Technology Support,Finance and Business Assurance Directorate,Ministry of Justice,PI1612/009," 83,198.40 ",Information Technology Support
Ministry of Justice,Youth Justice Board,29/03/2016,Information Technology Support,Finance and Business Assurance Directorate,Ministry of Justice,PI1612/011," 127,241.11 ",Information Technology Support
Ministry of Justice,Youth Justice Board,10/03/2016,Information Technology Support,Finance and Business Assurance Directorate,Ministry of Justice,PI1612/004," 31,347.78 ",Information Technology Support
Ministry of Justice,Youth Justice Board,10/03/2016,Information Technology Support,Finance and Business Assurance Directorate,Ministry of Justice,PI1612/006," 31,347.78 ",Information Technology Support
